bitfinex/quotes_BTCUSD_20250417
["timestamp","ask_amount","ask_price","bid_price","bid_amount"]
[1744927504593,0.23554074,84911.0,84910.0,0.00013989]
[1744927504800,0.35498865,84911.0,84910.0,0.00013989]
[1744927505194,0.40438865,84911.0,84910.0,0.00013989]
[1744927510474,0.23556848,84901.0,84900.0,0.34533624]
[1744927510698,0.23556848,84901.0,84900.0,0.00013981]
[1744927512109,0.23556848,84901.0,84900.0,0.02204656]
[1744927512110,0.35501639,84901.0,84900.0,0.02204656]
[1744927512353,0.35501639,84901.0,84900.0,0.00013981]
[1744927512597,0.35501639,84901.0,84900.0,0.02192536]
[1744927514642,0.23556155,84904.0,84900.0,0.02192536]
[1744927514828,0.23556462,84903.0,84900.0,0.02192536]
[1744927515045,0.24734276,84903.0,84900.0,0.02192536]
[1744927515183,0.23556758,84902.0,84900.0,0.02192536]
[1744927519639,0.0459,84901.0,84900.0,0.02192536]
[1744927520283,0.23556758,84902.0,84900.0,0.02192536]
[1744927524042,0.11944791,84901.0,84900.0,0.02192536]
[1744927524244,0.16924791,84901.0,84900.0,0.02192536]
[1744927525311,0.2355879,84894.0,84893.0,0.01086464]
[1744927525508,0.2355879,84894.0,84893.0,0.01100439]
[1744927527486,0.23558704,84895.0,84893.0,0.01100439]
[1744927527696,0.23558704,84895.0,84893.0,0.03022725]
[1744927527911,0.23558704,84895.0,84893.0,0.01100439]
[1744927528903,0.24736146,84896.0,84893.0,0.01100439]
[1744927529020,0.24736146,84896.0,84893.0,0.03041408]
[1744927529224,0.23558707,84895.0,84893.0,0.01100439]
[1744927529457,0.23558707,84895.0,84893.0,0.03054387]
[1744927531179,0.23558707,84895.0,84894.0,0.01416458]
[1744927535758,0.35503498,84895.0,84894.0,0.01416458]
[1744927535894,0.40083498,84895.0,84894.0,0.01416458]
[1744927536302,0.40083498,84895.0,84893.0,0.01967923]
[1744927536543,0.11944791,84894.0,84893.0,0.01967923]
[1744927549172,1.11944791,84894.0,84893.0,0.01967923]
[1744927558041,1.12044791,84894.0,84893.0,0.01967923]
[1744927558238,1.21814791,84894.0,84893.0,0.01967923]
[1744927559177,1.21814791,84894.0,84893.0,0.00013975]
[1744927560291,1.21814791,84894.0,84893.0,0.0194544]
[1744927561274,1.16834791,84894.0,84893.0,0.0194544]
[1744927561595,1.16734791,84894.0,84893.0,0.0194544]
[1744927562123,1.21814791,84894.0,84893.0,0.0194544]
[1744927562647,1.21814791,84894.0,84893.0,0.00013975]
[1744927564500,1.21814791,84894.0,84893.0,0.01977893]
[1744927564715,1.21814791,84894.0,84893.0,0.00013975]
[1744927584882,0.23559068,84893.0,84870.0,0.30682812]
[1744927585073,0.23562954,84879.0,84878.0,0.00129173]
[1744927585309,0.35507745,84879.0,84878.0,0.00129173]
[1744927586048,0.35507745,84879.0,84878.0,0.02626337]
[1744927596443,0.40217745,84879.0,84878.0,0.02626337]
[1744927601185,0.40217745,84879.0,84878.0,0.00129173]
[1744927601530,0.40217745,84879.0,84878.0,0.00044873]
[1744927601811,0.23570729,84851.0,84846.0,0.05788605]
[1744927601997,0.01178536,84851.0,84848.0,0.34]
[1744927602244,0.01178536,84851.0,84848.0,0.341]
[1744927602464,0.01178522,84852.0,84849.0,0.0144561]
[1744927602667,0.01178522,84852.0,84849.0,0.02624174]
[1744927603042,0.01178522,84852.0,84849.0,0.05137898]
[1744927603399,0.24748353,84855.0,84851.0,0.34]
[1744927603552,0.24748558,84854.0,84851.0,0.34]
[1744927603904,0.24748558,84854.0,84852.0,0.01446092]
[1744927604107,0.24748558,84854.0,84851.0,0.34]
[1744927604222,0.24748558,84854.0,84852.0,0.01445971]
[1744927604426,0.01178508,84853.0,84850.0,0.0117855]
[1744927604635,0.01178508,84853.0,84851.0,0.01445851]
[1744927604860,0.01178508,84853.0,84850.0,0.0117855]
[1744927605059,0.01178508,84853.0,84851.0,0.01445851]
[1744927605265,0.01178508,84853.0,84850.0,0.0117855]
[1744927605464,0.01178355,84864.0,84859.0,0.34]
[1744927605693,0.13123146,84864.0,84860.0,0.01446694]
[1744927605901,0.01178383,84862.0,84860.0,0.01446694]
[1744927606099,0.23568101,84861.0,84860.0,0.01446694]
[1744927606684,0.01178439,84858.0,84855.0,0.34]
[1744927606892,0.23569217,84857.0,84856.0,0.01450225]
[1744927607797,0.01178439,84858.0,84856.0,0.01450225]
[1744927609178,0.24747381,84858.0,84856.0,0.01450225]
[1744927610785,0.24748244,84855.0,84852.0,0.34]
[1744927611228,0.24747702,84857.0,84853.0,0.01178508]
[1744927611486,0.01178453,84857.0,84853.0,0.01178508]
[1744927611695,0.24747667,84857.0,84853.0,0.01178508]
[1744927612334,0.01178467,84856.0,84853.0,0.01178508]
[1744927613600,0.0117848,84855.0,84852.0,0.34]
[1744927613729,0.0117848,84855.0,84852.0,0.341]
[1744927614143,0.01178467,84856.0,84852.0,0.35278522]
[1744927614746,0.01178467,84856.0,84852.0,0.001]
[1744927615158,0.01178467,84856.0,84852.0,0.14242258]
[1744927615390,0.01178467,84856.0,84852.0,0.1542078]
[1744927615842,0.24748098,84855.0,84852.0,0.001]
[1744927616413,0.23570088,84854.0,84852.0,0.001]
[1744927620143,0.23570088,84854.0,84853.0,0.01452833]
[1744927620549,0.23570088,84854.0,84852.0,0.001]
[1744927620921,0.23570088,84854.0,84853.0,0.01452833]
[1744927621130,0.23570088,84854.0,84852.0,0.001]
[1744927621331,0.23570088,84854.0,84853.0,0.01452833]
[1744927621708,0.23571007,84850.0,84849.0,0.0241163]
[1744927621914,0.23571007,84850.0,84849.0,0.03864101]
[1744927622223,0.23571007,84850.0,84849.0,0.03950579]
[1744927622632,0.35515798,84850.0,84849.0,0.03950579]
[1744927624212,0.01178522,84852.0,84849.0,0.03950579]
[1744927624213,0.24749008,84852.0,84849.0,0.03950579]
[1744927625081,0.24747518,84857.0,84852.0,0.01178522]
[1744927625288,0.0117848,84855.0,84853.0,0.01458458]
[1744927625496,0.23570816,84851.0,84849.0,0.02498108]
[1744927625634,0.23570816,84851.0,84850.0,0.01457855]
[1744927632527,0.28340816,84851.0,84850.0,0.01457855]
[1744927635405,0.23570816,84851.0,84850.0,0.01457855]
[1744927640641,0.24747143,84859.0,84853.0,0.01178508]
[1744927640815,0.0117848,84855.0,84851.0,0.01178536]
[1744927640951,0.01178494,84854.0,84851.0,0.01178536]
[1744927641167,0.01178508,84853.0,84850.0,0.34]
[1744927641368,0.01178508,84853.0,84852.0,0.01458725]
[1744927641570,0.01178508,84853.0,84851.0,0.01458604]
[1744927641771,0.01178508,84853.0,84852.0,0.01458725]
[1744927642182,0.01178508,84853.0,84849.0,0.50640759]
[1744927642402,0.01178508,84853.0,84852.0,0.01458725]
[1744927642828,0.01178508,84853.0,84849.0,0.51819323]
[1744927643031,0.01178508,84853.0,84852.0,0.01458725]
[1744927643237,0.01178508,84853.0,84849.0,0.50640759]
[1744927643441,0.01178508,84853.0,84852.0,0.01458725]
[1744927643716,0.01178508,84853.0,84849.0,0.51819323]
[1744927643909,0.01178508,84853.0,84852.0,0.01458725]
[1744927644067,0.01178522,84852.0,84849.0,0.50640759]
[1744927644286,0.01178522,84852.0,84850.0,0.01458484]
[1744927646638,0.01178508,84853.0,84850.0,0.01458484]
[1744927647470,0.01178522,84852.0,84851.0,0.01276294]
[1744927647821,0.01178522,84852.0,84849.0,0.16554975]
[1744927648037,0.01278508,84853.0,84851.0,0.01276294]
[1744927648241,0.01278508,84853.0,84850.0,0.01276173]
[1744927648443,0.01278508,84853.0,84852.0,0.01276294]
[1744927648663,0.01178522,84852.0,84849.0,0.02412313]
[1744927648898,0.01178522,84852.0,84848.0,0.15321387]
[1744927649475,0.01178536,84851.0,84848.0,0.14142809]
[1744927649823,0.01178522,84852.0,84848.0,0.15321387]
[1744927651677,0.01178522,84852.0,84848.0,0.14142809]
[1744927651887,0.01178536,84851.0,84848.0,0.14142809]
[1744927652185,0.01178536,84851.0,84848.0,0.16338527]
[1744927654230,0.01178536,84851.0,84848.0,0.36195718]
[1744927654640,0.24749295,84851.0,84848.0,0.36195718]
[1744927654982,0.24749295,84851.0,84849.0,0.0127539]
[1744927657202,0.23571841,84847.0,84846.0,0.15195922]
[1744927657403,0.23572344,84846.0,84844.0,0.00942272]
[1744927657813,0.23572344,84846.0,84844.0,0.03121479]
[1744927658028,0.0483,84845.0,84844.0,0.00056114]
[1744927658241,0.0483,84845.0,84844.0,0.0230097]
[1744927658443,0.0483,84845.0,84844.0,0.00056114]
[1744927659973,0.0483,84845.0,84844.0,0.02298768]
[1744927662395,0.01178592,84847.0,84844.0,0.02298768]
[1744927662514,0.24750693,84847.0,84844.0,0.02298768]
[1744927662751,0.05918564,84849.0,84846.0,0.34]
[1744927662752,0.01178564,84849.0,84846.0,0.34]
[1744927662949,0.23571563,84848.0,84846.0,0.34]
[1744927664862,0.23571563,84848.0,84847.0,0.01122353]
[1744927665161,0.24750141,84848.0,84845.0,0.34]
[1744927665363,0.24750141,84848.0,84846.0,0.01122113]
[1744927667362,0.01178592,84847.0,84844.0,0.02298768]
[1744927667563,0.01178592,84847.0,84845.0,0.01122233]
[1744927667915,0.01178592,84847.0,84844.0,0.02298768]
[1744927668072,0.01178592,84847.0,84846.0,0.01122233]
[1744927668279,0.01178592,84847.0,84844.0,0.02298768]
[1744927668461,0.01178592,84847.0,84846.0,0.01122353]
[1744927668666,0.01178592,84847.0,84845.0,0.01122233]
[1744927668870,0.01178592,84847.0,84846.0,0.01122353]
[1744927669143,0.01178592,84847.0,84844.0,0.02298768]
[1744927669516,0.01178592,84847.0,84845.0,0.01122233]
[1744927669715,0.24750182,84848.0,84845.0,0.01122233]
[1744927669842,0.01178592,84847.0,84844.0,0.02298768]
[1744927670043,0.01178592,84847.0,84846.0,0.01122353]
[1744927670274,0.01178592,84847.0,84845.0,0.01122233]
[1744927670481,0.01178592,84847.0,84846.0,0.01122353]
[1744927670924,0.01178592,84847.0,84844.0,0.02298768]
[1744927671101,0.01178592,84847.0,84846.0,0.01122353]
[1744927671301,0.01278592,84847.0,84845.0,0.00980463]
[1744927671529,0.34370595,84847.0,84846.0,0.00980583]
[1744927671709,0.46315386,84847.0,84846.0,0.00980583]
[1744927671912,0.28322396,84845.0,84844.0,0.02298768]
[1744927672139,0.40267187,84845.0,84844.0,0.02298768]
[1744927672349,0.40267187,84845.0,84844.0,0.03000335]
[1744927681349,0.23574063,84839.0,84837.0,0.34533624]
[1744927681552,0.23574063,84839.0,84837.0,0.00013458]
[1744927681746,0.23674063,84839.0,84837.0,0.00013458]
[1744927682378,0.23674063,84839.0,84837.0,0.02181224]
[1744927682577,0.23674063,84839.0,84837.0,0.00013458]
[1744927684481,0.23674063,84839.0,84837.0,0.02258125]
[1744927688614,0.001,84839.0,84837.0,0.02258125]
[1744927688812,0.001,84839.0,84838.0,0.00621861]
[1744927695906,0.23574341,84838.0,84837.0,0.02258125]
[1744927696463,0.23574341,84838.0,84837.0,0.02880467]
[1744927704785,0.24753058,84838.0,84834.0,0.19206767]
[1744927705013,0.0117873,84837.0,84834.0,0.00868178]
[1744927705218,0.0117873,84837.0,84835.0,0.00545564]
[1744927705410,0.01178717,84838.0,84835.0,0.00545564]
[1744927706000,0.01278703,84839.0,84835.0,0.15869288]
[1744927706413,0.01178717,84838.0,84835.0,0.1469053]
[1744927708392,0.01178717,84838.0,84835.0,0.14690579]
[1744927708926,0.001,84839.0,84838.0,0.34]
[1744927709466,0.001,84839.0,84838.0,0.34544963]
[1744927713449,0.01178453,84857.0,84851.0,0.01178536]
[1744927713662,0.01178453,84857.0,84852.0,0.00542801]
[1744927713982,0.01178453,84857.0,84851.0,0.01178536]
[1744927714313,0.23568691,84859.0,84852.0,0.01178522]
[1744927714543,0.01178439,84858.0,84852.0,0.01720963]
[1744927714675,0.01178439,84858.0,84852.0,0.01178522]
[1744927715475,0.01178467,84856.0,84852.0,0.01178522]
[1744927715941,0.01178467,84856.0,84853.0,0.14142104]
[1744927716393,0.05778397,84861.0,84854.0,0.005422]
[1744927716530,0.046,84861.0,84854.0,0.01720694]
[1744927716733,0.01178439,84858.0,84854.0,0.15862577]
[1744927716990,0.01178439,84858.0,84854.0,0.14684083]
[1744927717209,0.01178453,84857.0,84854.0,0.005422]
[1744927717437,0.01178453,84857.0,84853.0,0.15320482]
[1744927717605,0.01178453,84857.0,84854.0,0.0054232]
[1744927719450,0.01178453,84857.0,84853.0,0.1532046]
[1744927719660,0.01178453,84857.0,84854.0,0.0054232]
[1744927719982,0.01178439,84858.0,84854.0,0.15862625]
[1744927722554,0.28217227,84864.0,84854.0,0.15862625]
[1744927722555,0.0507436,84872.0,84870.0,0.34]
[1744927722969,0.0008436,84872.0,84871.0,0.48671844]
[1744927723451,0.0008436,84872.0,84871.0,0.50193823]
[1744927723663,0.0008436,84872.0,84871.0,0.63445823]
[1744927724075,0.0008436,84872.0,84871.0,0.63450316]
[1744927725587,0.0008436,84872.0,84871.0,0.68290316]
[1744927726250,0.0008436,84872.0,84871.0,0.6918569]
[1744927727021,0.0008436,84872.0,84871.0,0.6434569]
[1744927731312,0.0008436,84872.0,84871.0,0.6444569]
[1744927739930,0.0008434,84882.0,84881.0,0.49659418]
[1744927740357,0.0008434,84882.0,84881.0,0.50171585]
[1744927741628,0.0008434,84882.0,84881.0,0.36034146]
[1744927745019,0.0008434,84882.0,84881.0,0.49282146]
[1744927745223,0.0008434,84882.0,84881.0,0.52076454]
[1744927756702,0.0008434,84882.0,84881.0,0.16554475]
[1744927758045,0.0008434,84882.0,84881.0,0.03306475]
[1744927758203,0.0008434,84882.0,84881.0,0.16550475]
[1744927758398,0.23646461,84882.0,84881.0,0.16550475]
[1744927758673,0.0008434,84882.0,84881.0,0.16550475]
[1744927760264,0.0008434,84882.0,84881.0,0.64687914]
[1744927773135,0.0008434,84886.0,84885.0,0.48136773]
[1744927773336,0.0008434,84887.0,84885.0,0.48136773]
[1744927773543,0.0008434,84887.0,84885.0,0.48640865]
[1744927778679,0.00066518,84887.0,84885.0,0.48640865]
[1744927783671,0.00066518,84887.0,84885.0,0.29363445]
[1744927784072,0.00066518,84887.0,84885.0,0.43500218]
[1744927785980,0.00066518,84887.0,84885.0,0.14640865]
[1744927788141,0.00066518,84887.0,84886.0,0.34]
[1744927788361,0.00066518,84887.0,84886.0,0.34501624]
[1744927790022,0.00066518,84887.0,84886.0,0.00501624]
[1744927795606,0.00066518,84887.0,84886.0,0.13745624]
[1744927800391,0.00066518,84887.0,84886.0,0.47745624]
[1744927804059,0.00066518,84887.0,84886.0,0.4147067]
[1744927811226,0.00066518,84887.0,84886.0,0.2822667]
[1744927811527,0.00066518,84887.0,84886.0,0.4147067]
[1744927821986,0.00066518,84887.0,84886.0,0.00438656]
[1744927822192,0.04786518,84887.0,84886.0,0.48575262]
[1744927831276,0.04786518,84887.0,84886.0,0.49334806]
[1744927836534,0.04886518,84887.0,84886.0,0.351982]
[1744927836760,0.09816518,84887.0,84886.0,0.351982]
[1744927838543,0.09816518,84887.0,84886.0,0.34]
[1744927838759,0.09816518,84887.0,84886.0,0.34917315]
[1744927840616,0.00166518,84887.0,84886.0,0.34917315]
[1744927843962,0.0008434,84888.0,84887.0,0.4813644]
[1744927844167,0.99053171,84894.0,84893.0,0.52695441]
[1744927844342,0.9576703,84894.0,84893.0,0.66849775]
[1744927844483,0.90010029,84894.0,84893.0,0.66849775]
[1744927844921,0.84128105,84894.0,84893.0,0.66849775]
[1744927845143,0.78246181,84894.0,84893.0,0.66849775]
[1744927845381,0.72364257,84894.0,84893.0,0.66849775]
[1744927845791,0.66482333,84894.0,84893.0,0.66849775]
[1744927846015,0.60600409,84894.0,84893.0,0.66849775]
[1744927846737,0.60600409,84894.0,84893.0,0.67724298]
[1744927848842,0.58356409,84894.0,84893.0,0.67724298]
[1744927849040,0.57608409,84894.0,84893.0,0.67724298]
[1744927850311,0.51728196,84894.0,84893.0,0.67724298]
[1744927850953,0.45847983,84894.0,84893.0,0.67724298]
[1744927851392,0.45847983,84894.0,84893.0,0.67924298]
[1744927852114,0.00039303,84895.0,84894.0,0.35454085]
[1744927852347,0.00039303,84895.0,84894.0,0.53097431]
[1744927853449,0.000843,84916.0,84915.0,0.48131778]
[1744927853868,0.000843,84916.0,84915.0,0.49032919]
[1744927854685,0.00129327,84916.0,84915.0,0.49922712]
[1744927855265,0.00129327,84916.0,84915.0,0.35790934]
[1744927861834,0.00129327,84916.0,84915.0,0.35890934]
[1744927864453,0.00129327,84916.0,84915.0,0.01890934]
[1744927866415,0.00129327,84916.0,84915.0,0.35890934]
[1744927868872,0.002,84919.0,84918.0,0.48131279]
[1744927869275,0.002,84919.0,84918.0,0.49023454]
[1744927870129,0.0008426,84921.0,84920.0,0.48130946]
[1744927870515,0.0008426,84921.0,84920.0,0.49022992]
[1744927884061,0.00038121,84928.0,84922.0,0.49308164]
[1744927884228,0.0477,84941.0,84928.0,0.34]
[1744927884436,0.0487,84938.0,84937.0,0.14128034]
[1744927884798,0.0487,84938.0,84937.0,0.15012956]
[1744927885200,0.0487,84938.0,84937.0,0.49012956]
[1744927885645,0.0487,84938.0,84937.0,0.49873812]
[1744927886050,0.0487,84938.0,84937.0,0.52095346]
[1744927888212,0.0487,84945.0,84944.0,0.48126954]
[1744927888437,0.002,84949.0,84946.0,0.01177218]
[1744927888847,0.002,84949.0,84947.0,0.00880386]
[1744927889599,0.002,84949.0,84948.0,0.14126289]
[1744927889986,0.002,84949.0,84948.0,0.15006804]
[1744927892429,0.002,84949.0,84948.0,0.49006804]
[1744927893384,0.002,84949.0,84948.0,0.00880386]
[1744927894024,0.002,84949.0,84948.0,0.15006675]
[1744927895749,0.002,84949.0,84948.0,0.15106675]
[1744927902773,0.002,84949.0,84948.0,0.49106675]
[1744927910901,0.002,84949.0,84948.0,0.34980386]
[1744927911121,0.21604791,84949.0,84948.0,0.00980386]
[1744927911312,0.21604791,84949.0,84948.0,0.00880386]
[1744927911524,0.23543815,84948.0,84947.0,4.493e-05]
[1744927911725,0.44948606,84948.0,84947.0,4.493e-05]
[1744927918043,0.45048606,84948.0,84947.0,4.493e-05]
[1744927918410,0.45048606,84948.0,84947.0,1e-08]
[1744927918633,0.23549914,84926.0,84925.0,0.13228]
[1744927918871,0.44954705,84926.0,84925.0,0.34]
[1744927919137,0.44954705,84926.0,84925.0,0.00765224]
[1744927919831,0.235513,84921.0,84920.0,0.00106849]
[1744927920076,0.40376091,84921.0,84920.0,0.02080654]
[1744927920280,0.40376091,84921.0,84920.0,0.00106849]
[1744927921281,0.40376091,84921.0,84920.0,0.02086402]
[1744927921692,0.40376091,84921.0,84920.0,0.01986402]
[1744927923093,0.0488,84921.0,84920.0,0.02086402]
[1744927924203,0.0488,84921.0,84920.0,0.02768519]
[1744927925500,0.23551239,84922.0,84920.0,0.02768519]
[1744927925718,0.0117744,84930.0,84924.0,0.01177523]
[1744927925928,0.01177495,84926.0,84921.0,0.49988308]
[1744927926140,0.01177509,84925.0,84921.0,0.34]
[1744927926889,0.01177523,84924.0,84921.0,0.34]
[1744927927383,0.01177523,84924.0,84921.0,0.48130713]
[1744927930660,0.01177523,84924.0,84921.0,0.34]
[1744927930867,0.01177523,84924.0,84921.0,0.48130757]
[1744927931886,0.0117744,84930.0,84925.0,0.01177509]
[1744927932172,0.01177509,84925.0,84923.0,0.34]
[1744927932932,0.01177509,84925.0,84924.0,0.00734923]
[1744927935277,0.01177509,84925.0,84924.0,0.01417738]
[1744927944580,0.05837509,84925.0,84924.0,0.01417738]
[1744927944787,0.10827509,84925.0,84924.0,0.01417738]
[1744927946472,0.10827509,84925.0,84924.0,0.00734923]
[1744927947011,0.227723,84925.0,84924.0,0.00734923]
[1744927948907,0.0466,84921.0,84920.0,0.02086402]
[1744927949163,0.16604791,84921.0,84920.0,0.02771865]
[1744927949770,0.16604791,84921.0,84920.0,0.02086402]
[1744927956776,0.24730884,84915.0,84911.0,0.26316374]
[1744927957016,0.01177675,84913.0,84911.0,6.337e-05]
[1744927957222,0.01177675,84913.0,84912.0,0.00686802]
[1744927958655,0.01177675,84913.0,84912.0,0.02516122]
[1744927958799,0.01177675,84913.0,84912.0,0.00686802]
[1744927962991,0.09285551,84914.0,84912.0,0.02529052]
[1744927965958,0.01177662,84914.0,84912.0,0.02529052]
[1744927972296,0.05837565,84921.0,84914.0,0.01177662]
[1744927972479,0.0117762,84917.0,84914.0,0.34]
[1744927972893,0.0117762,84917.0,84915.0,0.0068886]
[1744927973100,0.24729601,84919.0,84916.0,0.34]
[1744927973311,0.24729601,84919.0,84917.0,0.00689119]
[1744927975029,0.01177592,84919.0,84917.0,0.00689119]
[1744927975234,0.23552132,84918.0,84917.0,0.00689119]
[1744927975429,0.24729738,84918.0,84915.0,0.34]
[1744927975603,0.24729738,84918.0,84917.0,0.00689119]
[1744927975804,0.24729738,84918.0,84916.0,0.0068899]
[1744927976028,0.24729738,84918.0,84917.0,0.00689119]
[1744927976351,0.01177634,84916.0,84913.0,0.34]
[1744927976503,0.24729738,84918.0,84917.0,0.00689119]
[1744927976703,0.0117762,84917.0,84913.0,0.48131975]
[1744927977054,0.01177634,84916.0,84914.0,0.0068886]
[1744927977792,0.2473049,84916.0,84914.0,0.0068886]
[1744927978000,0.0452,84915.0,84914.0,0.0068886]
[1744927978288,0.23553242,84914.0,84912.0,0.0184225]
[1744927978609,0.23553796,84912.0,84911.0,6.337e-05]
[1744927980046,0.23553796,84912.0,84911.0,0.00692564]
[1744927980243,0.23553796,84912.0,84911.0,6.337e-05]
[1744927980469,0.40358587,84912.0,84911.0,6.337e-05]
[1744927981393,0.40358587,84912.0,84911.0,0.01810332]
[1744927986351,0.45278587,84912.0,84911.0,0.01810332]
[1744927989527,0.21724791,84912.0,84911.0,0.02504511]
[1744927989749,0.23552575,84917.0,84911.0,0.02504511]
[1744927989953,0.11944791,84916.0,84911.0,0.02504511]
[1744927990198,0.11944791,84916.0,84913.0,0.01177675]
[1744927990404,0.11944791,84916.0,84914.0,0.14131789]
[1744927990598,0.11944791,84916.0,84914.0,0.14826227]
[1744927992325,0.0117762,84917.0,84914.0,0.34694438]
[1744927993433,0.0117762,84917.0,84914.0,0.00694438]
[1744927994518,0.24730268,84917.0,84914.0,0.00694438]
[1744927994858,0.24730546,84916.0,84912.0,0.35177689]
[1744927995060,0.01177648,84915.0,84913.0,0.00694179]
[1744927997101,0.24730865,84915.0,84913.0,0.00694179]
[1744927997311,0.0971,84914.0,84913.0,0.00694179]
[1744927997509,0.23553519,84913.0,84911.0,0.35810332]
[1744927997909,0.23553519,84913.0,84912.0,0.00693792]
[1744928002773,0.01177717,84910.0,84906.0,0.14133169]
[1744928002977,0.01177717,84910.0,84906.0,0.14178177]
[1744928003215,0.01177717,84910.0,84906.0,0.1535595]
[1744928004787,0.01177717,84910.0,84906.0,0.17143406]
[1744928005184,0.01177717,84910.0,84908.0,0.34]
[1744928006715,0.01177731,84909.0,84906.0,0.01832483]
[1744928008082,0.01177717,84910.0,84906.0,0.17143384]
[1744928010225,0.01177717,84910.0,84907.0,0.48132976]
[1744928010427,0.01177717,84910.0,84907.0,0.34605895]
[1744928012502,0.01177717,84910.0,84907.0,0.49916676]
[1744928013190,0.01177703,84911.0,84907.0,0.49916676]
[1744928014047,0.01177689,84912.0,84908.0,0.15310592]
[1744928014260,0.01177675,84913.0,84910.0,0.34]
[1744928014484,0.24731046,84914.0,84910.0,0.4813251]
[1744928014689,0.24731046,84914.0,84911.0,0.00606656]
[1744928014895,0.28130741,84924.0,84917.0,0.0117762]
[1744928015097,0.28130741,84924.0,84916.0,0.01177634]
[1744928015098,0.01177565,84921.0,84916.0,0.01177634]
[1744928015270,0.01177565,84921.0,84917.0,0.14131307]
[1744928015519,0.2472851,84923.0,84917.0,0.14738093]
[1744928016482,0.01177565,84921.0,84917.0,0.14738093]
[1744928017499,0.23552023,84919.0,84917.0,0.00606786]
[1744928017700,0.01177606,84918.0,84915.0,0.34]
[1744928018020,0.01177606,84918.0,84916.0,0.00606915]
[1744928018436,0.01177606,84918.0,84915.0,0.34]
[1744928018641,0.01177606,84918.0,84917.0,0.00606915]
[1744928018858,0.01177606,84918.0,84915.0,0.34]
[1744928019059,0.01177606,84918.0,84917.0,0.00607044]
[1744928019415,0.01177578,84920.0,84917.0,0.00607044]
[1744928019590,0.01177606,84918.0,84915.0,0.34]
[1744928022741,0.47128198,84951.0,84920.0,0.01177578]
[1744928022742,0.01177481,84927.0,84920.0,0.01177578]
[1744928022860,0.01177481,84927.0,84922.0,0.34]
[1744928023284,0.24727869,84925.0,84922.0,0.34]
[1744928025003,0.24727869,84925.0,84923.0,0.0060528]
[1744928025400,0.01177523,84924.0,84921.0,0.34]
[1744928026064,0.01177343,84937.0,84934.0,0.14128508]
[1744928026264,0.01177426,84931.0,84928.0,0.4812949]
[1744928026878,0.01177426,84931.0,84928.0,0.34]
[1744928026879,0.23549007,84930.0,84928.0,0.34]
[1744928027110,0.24726132,84931.0,84928.0,0.34]
[1744928027532,0.01177454,84929.0,84927.0,0.34]
[1744928028465,0.01177454,84929.0,84928.0,0.00734899]
[1744928029003,0.24726804,84929.0,84928.0,0.00734899]
[1744928032493,0.24727596,84926.0,84923.0,0.34]
[1744928032699,0.24727596,84926.0,84911.0,0.14132369]
[1744928032700,0.01177509,84925.0,84921.0,0.35177565]
[1744928032899,0.01177509,84925.0,84921.0,0.49308316]
[1744928033099,0.2472787,84925.0,84921.0,0.49308316]
[1744928033393,0.2472787,84925.0,84923.0,0.34]
[1744928033394,0.01177509,84925.0,84923.0,0.34]
[1744928033589,0.01177509,84925.0,84924.0,0.00734901]
[1744928035466,0.24727991,84924.0,84921.0,0.34]
[1744928036444,0.01177565,84921.0,84918.0,0.34]
[1744928036923,0.01177565,84921.0,84918.0,0.341]
[1744928038281,0.23551796,84920.0,84918.0,0.001]
[1744928040063,0.23550965,84923.0,84919.0,0.01777214]
[1744928040298,0.2472875,84922.0,84919.0,0.00599622]
[1744928042084,0.01177565,84921.0,84917.0,0.49308944]
[1744928042257,0.01177565,84921.0,84920.0,0.0059988]
[1744928042466,0.01177565,84921.0,84918.0,0.01177606]
[1744928042689,0.01177565,84921.0,84920.0,0.00599622]
[1744928042862,0.01177565,84921.0,84919.0,0.00599364]
[1744928043063,0.01177565,84921.0,84920.0,0.00599493]
[1744928043472,0.01177565,84921.0,84917.0,0.3517762]
[1744928043682,0.01177565,84921.0,84920.0,0.00599622]
[1744928043952,0.01177551,84922.0,84918.0,0.15308876]
[1744928044133,0.01177551,84922.0,84920.0,0.00599751]
[1744928044302,0.01177551,84922.0,84919.0,0.00599364]
[1744928044471,0.01177551,84922.0,84921.0,0.00599493]
[1744928044675,0.01177551,84922.0,84921.0,0.00599622]
[1744928044881,0.01177551,84922.0,84918.0,0.15308876]
[1744928045182,0.01177551,84922.0,84919.0,0.00599493]
[1744928046690,0.28117909,84934.0,84923.0,0.01177537]
[1744928046691,0.01177454,84929.0,84923.0,0.01177537]
[1744928046863,0.01177454,84929.0,84919.0,0.00599493]
[1744928046864,0.23550154,84926.0,84919.0,0.35136947]
[1744928047060,0.01177509,84925.0,84924.0,0.0060014]
[1744928047264,0.01177509,84925.0,84921.0,0.01177565]
[1744928047507,0.01177509,84925.0,84924.0,0.00599752]
[1744928047813,0.01177523,84924.0,84921.0,0.34]
[1744928048170,0.01177523,84924.0,84921.0,0.48130684]
[1744928048661,0.01177523,84924.0,84921.0,0.34]
[1744928049152,0.01177523,84924.0,84920.0,0.15308411]
[1744928050396,0.01177509,84925.0,84921.0,0.15308206]
[1744928051662,0.01190931,84931.0,84926.0,0.01177495]
[1744928051871,0.00013505,84931.0,84929.0,0.14129343]
[1744928052070,0.00013505,84931.0,84929.0,0.14364818]
[1744928052276,0.0004215,84947.0,84941.0,0.01177287]
[1744928052493,0.0004215,84947.0,84945.0,0.14126719]
[1744928052688,7.427e-05,84946.0,84945.0,0.14126719]
[1744928053053,7.427e-05,84946.0,84945.0,0.14861464]
[1744928053240,7.427e-05,84946.0,84945.0,0.00734745]
[1744928054461,7.427e-05,84946.0,84943.0,0.0117726]
[1744928055088,7.427e-05,84946.0,84944.0,0.00595956]
[1744928055262,7.427e-05,84946.0,84945.0,0.00734732]
[1744928055714,7.427e-05,84946.0,84945.0,0.01330817]
[1744928057686,7.427e-05,84946.0,84945.0,0.00596085]
[1744928058203,7.427e-05,84946.0,84945.0,0.00595956]
[1744928058407,7.427e-05,84946.0,84943.0,0.3517726]
[1744928058606,7.427e-05,84946.0,84944.0,0.00595827]
[1744928060747,7.427e-05,84946.0,84942.0,0.01177273]
[1744928060909,7.427e-05,84946.0,84945.0,0.00595827]
[1744928061107,7.427e-05,84946.0,84943.0,0.0117726]
[1744928061309,7.427e-05,84946.0,84945.0,0.00595956]
[1744928061555,7.427e-05,84946.0,84944.0,0.00595827]
[1744928069325,7.427e-05,84946.0,84945.0,0.34]
[1744928069661,7.427e-05,84946.0,84945.0,0.34587774]
[1744928071096,7.427e-05,84946.0,84945.0,0.35322485]
[1744928072150,7.427e-05,84946.0,84945.0,0.00587774]
[1744928072349,7.427e-05,84946.0,84943.0,0.0117726]
[1744928072562,7.427e-05,84946.0,84944.0,0.00588206]
[1744928073895,7.427e-05,84946.0,84945.0,0.34]
[1744928074241,7.427e-05,84946.0,84945.0,0.34588335]
[1744928081422,7.427e-05,84946.0,84945.0,0.36419294]
[1744928084904,7.427e-05,84946.0,84945.0,0.35323031]
[1744928087922,7.427e-05,84946.0,84945.0,0.34588335]
[1744928089037,0.121877,84946.0,84945.0,0.00588335]